[Event "Titled Tuesday Blitz September 28 2021"]
[White "Sjugirov, Sanan"]
[Black "Savchenko, Boris"]
[WhiteFideId "4189302"]
[BlackFideId "4147332"]
[WhiteElo "2654"]
[BlackElo "2543"]
[Result "0-1"]
[Round "10"]
[TimeControl "180+1"]
[Date "2021.09.28"]
[WhiteClock "0:00:02"]
[BlackClock "0:00:36"]

1. e4 {[%clk 0:03:00]}  c5 {[%clk 0:02:40]} 2. Nf3 {[%clk 0:02:52]}  d6 {[%clk 0:02:39]} 3. d4 {[%clk 0:02:45]}  cxd4 {[%clk 0:02:37]} 4. Qxd4 {[%clk 0:02:41]}  Nc6 {[%clk 0:02:35]} 5. Bb5 {[%clk 0:02:40]}  Bd7 {[%clk 0:02:35]} 6. Bxc6 {[%clk 0:02:39]}  Bxc6 {[%clk 0:02:36]} 7. c4 {[%clk 0:02:28]}  f5 {[%clk 0:02:30]} 8. exf5 {[%clk 0:02:23]}  Qa5+ {[%clk 0:02:30]} 9. Nc3 {[%clk 0:02:23]}  Qxf5 {[%clk 0:02:30]} 10. Be3 {[%clk 0:02:00]}  Nf6 {[%clk 0:02:26]} 11. Qd1 {[%clk 0:01:46]}  e5 {[%clk 0:02:18]} 12. O-O {[%clk 0:01:27]}  Be7 {[%clk 0:02:16]} 13. Nd2 {[%clk 0:01:13]}  g5 {[%clk 0:01:55]} 14. b4 {[%clk 0:01:07]}  g4 {[%clk 0:01:51]} 15. b5 {[%clk 0:01:03]}  Bd7 {[%clk 0:01:51]} 16. Qe2 {[%clk 0:00:57]}  Qg6 {[%clk 0:01:27]} 17. Rad1 {[%clk 0:00:33]}  b6 {[%clk 0:01:19]} 18. Rfe1 {[%clk 0:00:24]}  Rc8 {[%clk 0:01:16]} 19. Nf1 {[%clk 0:00:21]}  Be6 {[%clk 0:01:13]} 20. Nd5 {[%clk 0:00:21]}  Nxd5 {[%clk 0:01:12]} 21. cxd5 {[%clk 0:00:22]}  Rc2 {[%clk 0:01:07]} 22. Rd2 {[%clk 0:00:22]}  Rxd2 {[%clk 0:01:06]} 23. Qxd2 {[%clk 0:00:22]}  Bd7 {[%clk 0:01:07]} 24. a4 {[%clk 0:00:22]}  Kf7 {[%clk 0:01:04]} 25. Rc1 {[%clk 0:00:21]}  Rc8 {[%clk 0:01:04]} 26. Rxc8 {[%clk 0:00:21]}  Bxc8 {[%clk 0:01:05]} 27. Qc1 {[%clk 0:00:19]}  Bb7 {[%clk 0:00:50]} 28. Qc4 {[%clk 0:00:19]}  h5 {[%clk 0:00:50]} 29. Nd2 {[%clk 0:00:18]}  Ke8 {[%clk 0:00:48]} 30. Qc7 {[%clk 0:00:15]}  Bxd5 {[%clk 0:00:48]} 31. Qxa7 {[%clk 0:00:15]}  Qc2 {[%clk 0:00:47]} 32. Qxb6 {[%clk 0:00:12]}  Kf7 {[%clk 0:00:38]} 33. h4 {[%clk 0:00:03]}  gxh3 {[%clk 0:00:37]} 34. gxh3 {[%clk 0:00:03]}  Qd1+ {[%clk 0:00:37]} 35. Kh2 {[%clk 0:00:02]}  Qh1+ {[%clk 0:00:36]} 0-1


[Site "https://www.chess.com"]

[Event "Titled Tuesday Blitz September 28 2021"]
[White "Skatchkov, Valery"]
[Black "Martin Carmona, Gaston Manuel"]
[WhiteFideId "24195812"]
[BlackFideId "22284567"]
[WhiteElo "2195"]
[BlackElo "2161"]
[Result "0-1"]
[Round "10"]
[TimeControl "180+1"]
[Date "2021.09.28"]
[WhiteClock "0:00:14"]
[BlackClock "0:01:21"]

1. Nf3 {[%clk 0:00:54]}  g6 {[%clk 0:02:53]} 2. g3 {[%clk 0:00:55]}  Bg7 {[%clk 0:02:53]} 3. Bg2 {[%clk 0:00:55]}  Nf6 {[%clk 0:02:54]} 4. O-O {[%clk 0:00:55]}  O-O {[%clk 0:02:55]} 5. d4 {[%clk 0:00:55]}  d6 {[%clk 0:02:56]} 6. c4 {[%clk 0:00:56]}  Nc6 {[%clk 0:02:56]} 7. Nc3 {[%clk 0:00:57]}  Bf5 {[%clk 0:02:56]} 8. d5 {[%clk 0:00:57]}  Na5 {[%clk 0:02:54]} 9. Nd4 {[%clk 0:00:57]}  Bd7 {[%clk 0:02:32]} 10. b3 {[%clk 0:00:57]}  c5 {[%clk 0:02:33]} 11. dxc6 {[%clk 0:00:57]}  Nxc6 {[%clk 0:02:32]} 12. Bb2 {[%clk 0:00:56]}  Nxd4 {[%clk 0:02:27]} 13. Qxd4 {[%clk 0:00:57]}  Bc6 {[%clk 0:02:28]} 14. Bxc6 {[%clk 0:00:56]}  bxc6 {[%clk 0:02:28]} 15. e4 {[%clk 0:00:57]}  Nd7 {[%clk 0:02:26]} 16. Qd2 {[%clk 0:00:55]}  Rb8 {[%clk 0:02:22]} 17. Rad1 {[%clk 0:00:54]}  Ne5 {[%clk 0:02:21]} 18. Kg2 {[%clk 0:00:54]}  Qb6 {[%clk 0:02:18]} 19. Rfe1 {[%clk 0:00:52]}  Nxc4 {[%clk 0:02:18]} 20. bxc4 {[%clk 0:00:49]}  Qxb2 {[%clk 0:02:18]} 21. Qxb2 {[%clk 0:00:46]}  Rxb2 {[%clk 0:02:19]} 22. Ne2 {[%clk 0:00:44]}  Rfb8 {[%clk 0:02:14]} 23. Nf4 {[%clk 0:00:44]}  Rxa2 {[%clk 0:02:13]} 24. Nd3 {[%clk 0:00:40]}  Rc2 {[%clk 0:02:11]} 25. Rc1 {[%clk 0:00:38]}  Rxc1 {[%clk 0:02:10]} 26. Rxc1 {[%clk 0:00:39]}  Bd4 {[%clk 0:02:11]} 27. Rc2 {[%clk 0:00:38]}  Rb3 {[%clk 0:02:09]} 28. Nc1 {[%clk 0:00:37]}  Rb2 {[%clk 0:02:10]} 29. Rxb2 {[%clk 0:00:35]}  Bxb2 {[%clk 0:02:11]} 30. Na2 {[%clk 0:00:33]}  Kg7 {[%clk 0:02:08]} 31. Kf1 {[%clk 0:00:33]}  Kf6 {[%clk 0:02:08]} 32. Ke2 {[%clk 0:00:33]}  Ke5 {[%clk 0:02:08]} 33. Kd3 {[%clk 0:00:33]}  g5 {[%clk 0:02:06]} 34. Nb4 {[%clk 0:00:32]}  Ke6 {[%clk 0:01:40]} 35. Nxc6 {[%clk 0:00:33]}  a6 {[%clk 0:01:38]} 36. Kc2 {[%clk 0:00:33]}  Ba3 {[%clk 0:01:35]} 37. Kb3 {[%clk 0:00:31]}  Bc5 {[%clk 0:01:35]} 38. Ka4 {[%clk 0:00:31]}  Bxf2 {[%clk 0:01:33]} 39. Ka5 {[%clk 0:00:24]}  g4 {[%clk 0:01:34]} 40. Kxa6 {[%clk 0:00:23]}  Bg1 {[%clk 0:01:34]} 41. Nd8+ {[%clk 0:00:18]}  Kf6 {[%clk 0:01:33]} 42. e5+ {[%clk 0:00:19]}  dxe5 {[%clk 0:01:32]} 43. Kb5 {[%clk 0:00:19]}  e4 {[%clk 0:01:30]} 44. Kb4 {[%clk 0:00:12]}  Bxh2 {[%clk 0:01:25]} 45. c5 {[%clk 0:00:12]}  Bxg3 {[%clk 0:01:26]} 46. c6 {[%clk 0:00:13]}  Bd6+ {[%clk 0:01:23]} 47. Kc4 {[%clk 0:00:13]}  g3 {[%clk 0:01:22]} 48. Nb7 {[%clk 0:00:13]}  Bc7 {[%clk 0:01:22]} 49. Nd6 {[%clk 0:00:14]}  exd6 {[%clk 0:01:21]} 0-1


[Site "https://www.chess.com"]

[Event "Titled Tuesday Blitz September 28 2021"]
[White "Spitzl, Vinzent"]
[Black "Kaufman, Raymond"]
[WhiteFideId "12901253"]
[BlackFideId "2015056"]
[WhiteElo "2160"]
[BlackElo "2321"]
[Result "1-0"]
[Round "10"]
[TimeControl "180+1"]
[Date "2021.09.28"]
[WhiteClock "0:00:34"]
[BlackClock "0:00:05"]

1. e4 {[%clk 0:03:00]}  c5 {[%clk 0:02:59]} 2. Nf3 {[%clk 0:02:58]}  e6 {[%clk 0:02:59]} 3. d4 {[%clk 0:02:58]}  cxd4 {[%clk 0:02:59]} 4. Nxd4 {[%clk 0:02:59]}  Nf6 {[%clk 0:03:00]} 5. Nc3 {[%clk 0:02:56]}  Nc6 {[%clk 0:03:00]} 6. Ndb5 {[%clk 0:02:55]}  Bc5 {[%clk 0:03:00]} 7. Nd6+ {[%clk 0:02:47]}  Ke7 {[%clk 0:02:59]} 8. Bf4 {[%clk 0:02:44]}  e5 {[%clk 0:02:58]} 9. Nf5+ {[%clk 0:02:43]}  Kf8 {[%clk 0:02:57]} 10. Be3 {[%clk 0:02:43]}  Bxe3 {[%clk 0:02:53]} 11. Nxe3 {[%clk 0:02:43]}  d6 {[%clk 0:02:50]} 12. Bc4 {[%clk 0:02:40]}  g6 {[%clk 0:02:49]} 13. O-O {[%clk 0:02:32]}  Kg7 {[%clk 0:02:49]} 14. Qd3 {[%clk 0:02:26]}  Nd4 {[%clk 0:02:27]} 15. Ncd5 {[%clk 0:02:25]}  Nxd5 {[%clk 0:02:25]} 16. Nxd5 {[%clk 0:02:18]}  Be6 {[%clk 0:02:23]} 17. c3 {[%clk 0:02:12]}  Nc6 {[%clk 0:02:23]} 18. Rfd1 {[%clk 0:02:10]}  Na5 {[%clk 0:02:16]} 19. Bb3 {[%clk 0:02:07]}  Nxb3 {[%clk 0:02:11]} 20. axb3 {[%clk 0:02:08]}  a6 {[%clk 0:02:05]} 21. b4 {[%clk 0:02:02]}  Rc8 {[%clk 0:02:03]} 22. g3 {[%clk 0:01:52]}  h5 {[%clk 0:01:59]} 23. h4 {[%clk 0:01:48]}  Bxd5 {[%clk 0:01:37]} 24. Qxd5 {[%clk 0:01:44]}  Rc6 {[%clk 0:01:36]} 25. Qd2 {[%clk 0:01:36]}  Qf6 {[%clk 0:01:29]} 26. Qe3 {[%clk 0:01:31]}  Rhc8 {[%clk 0:01:27]} 27. Rd5 {[%clk 0:01:29]}  Rc4 {[%clk 0:01:25]} 28. Rad1 {[%clk 0:01:28]}  R8c6 {[%clk 0:01:25]} 29. R1d3 {[%clk 0:01:27]}  Rc7 {[%clk 0:00:56]} 30. Rxd6 {[%clk 0:01:24]}  Qe7 {[%clk 0:00:57]} 31. Kg2 {[%clk 0:01:17]}  R4c6 {[%clk 0:00:50]} 32. Rxc6 {[%clk 0:01:15]}  Rxc6 {[%clk 0:00:51]} 33. Rd5 {[%clk 0:01:11]}  b5 {[%clk 0:00:50]} 34. Qd3 {[%clk 0:01:10]}  Re6 {[%clk 0:00:41]} 35. Rd7 {[%clk 0:01:09]}  Qf6 {[%clk 0:00:41]} 36. Qd5 {[%clk 0:01:07]}  Rb6 {[%clk 0:00:36]} 37. Rd8 {[%clk 0:00:57]}  Re6 {[%clk 0:00:34]} 38. Qa8 {[%clk 0:00:54]}  Kh7 {[%clk 0:00:30]} 39. Rd7 {[%clk 0:00:49]}  Kg7 {[%clk 0:00:27]} 40. Qb7 {[%clk 0:00:46]}  Kg8 {[%clk 0:00:24]} 41. b3 {[%clk 0:00:45]}  Rb6 {[%clk 0:00:24]} 42. Qd5 {[%clk 0:00:44]}  Re6 {[%clk 0:00:22]} 43. c4 {[%clk 0:00:41]}  Kg7 {[%clk 0:00:17]} 44. c5 {[%clk 0:00:38]}  Kg8 {[%clk 0:00:14]} 45. Rd6 {[%clk 0:00:35]}  Kg7 {[%clk 0:00:05]} 46. Rxe6 {[%clk 0:00:34]} 1-0


[Site "https://www.chess.com"]

[Event "Titled Tuesday Blitz September 28 2021"]
[White "Stoyanov, Tsvetan"]
[Black "Shuvalov, Evgenij"]
[WhiteFideId "2917173"]
[BlackFideId "4187237"]
[WhiteElo "2191"]
[BlackElo "2129"]
[Result "0-1"]
[Round "10"]
[TimeControl "180+1"]
[Date "2021.09.28"]
[WhiteClock "0:00:25"]
[BlackClock "0:01:04"]

1. Nf3 {[%clk 0:03:00]}  Nf6 {[%clk 0:02:57]} 2. g3 {[%clk 0:03:01]}  g6 {[%clk 0:02:55]} 3. Bg2 {[%clk 0:03:02]}  Bg7 {[%clk 0:02:55]} 4. O-O {[%clk 0:03:03]}  O-O {[%clk 0:02:55]} 5. c4 {[%clk 0:03:03]}  c6 {[%clk 0:02:55]} 6. d4 {[%clk 0:03:04]}  d5 {[%clk 0:02:55]} 7. cxd5 {[%clk 0:03:04]}  cxd5 {[%clk 0:02:55]} 8. Nc3 {[%clk 0:03:05]}  Ne4 {[%clk 0:02:55]} 9. Qb3 {[%clk 0:03:02]}  Nxc3 {[%clk 0:02:54]} 10. bxc3 {[%clk 0:03:03]}  Nc6 {[%clk 0:02:54]} 11. Ba3 {[%clk 0:02:57]}  Re8 {[%clk 0:02:45]} 12. Nd2 {[%clk 0:02:48]}  e6 {[%clk 0:02:40]} 13. e4 {[%clk 0:02:47]}  Na5 {[%clk 0:02:32]} 14. Qc2 {[%clk 0:02:40]}  b6 {[%clk 0:02:26]} 15. Rfe1 {[%clk 0:02:32]}  Bb7 {[%clk 0:02:23]} 16. exd5 {[%clk 0:02:31]}  Bxd5 {[%clk 0:02:22]} 17. Ne4 {[%clk 0:02:27]}  Nc4 {[%clk 0:02:17]} 18. Bc1 {[%clk 0:02:27]}  Qe7 {[%clk 0:02:10]} 19. h4 {[%clk 0:02:19]}  h6 {[%clk 0:02:08]} 20. Bf4 {[%clk 0:02:17]}  Qb7 {[%clk 0:02:03]} 21. Bf1 {[%clk 0:00:58]}  Red8 {[%clk 0:01:33]} 22. h5 {[%clk 0:00:51]}  g5 {[%clk 0:01:30]} 23. Bc1 {[%clk 0:00:36]}  Rac8 {[%clk 0:01:29]} 24. Bd3 {[%clk 0:00:32]}  f5 {[%clk 0:01:24]} 25. Nd2 {[%clk 0:00:31]}  Nxd2 {[%clk 0:01:07]} 26. Qxd2 {[%clk 0:00:32]}  Qf7 {[%clk 0:01:05]} 27. a4 {[%clk 0:00:25]}  Qxh5 {[%clk 0:01:04]} 0-1


[Site "https://www.chess.com"]

[Event "Titled Tuesday Blitz September 28 2021"]
[White "Suvorov, Luca"]
[Black "Nozdrachev, Leonid"]
[WhiteFideId "12977071"]
[BlackFideId "24113433"]
[WhiteElo "2127"]
[BlackElo "2196"]
[Result "1-0"]
[Round "10"]
[TimeControl "180+1"]
[Date "2021.09.28"]
[WhiteClock "0:00:06"]
[BlackClock "0:00:04"]

1. d4 {[%clk 0:02:49]}  d5 {[%clk 0:02:49]} 2. c4 {[%clk 0:02:45]}  dxc4 {[%clk 0:02:46]} 3. Nf3 {[%clk 0:02:43]}  g6 {[%clk 0:02:41]} 4. e3 {[%clk 0:02:39]}  Be6 {[%clk 0:02:39]} 5. Nbd2 {[%clk 0:02:35]}  b5 {[%clk 0:02:35]} 6. b3 {[%clk 0:02:35]}  c3 {[%clk 0:02:33]} 7. Ne4 {[%clk 0:02:28]}  b4 {[%clk 0:02:33]} 8. a3 {[%clk 0:02:28]}  Bd5 {[%clk 0:02:25]} 9. Bd3 {[%clk 0:02:19]}  a5 {[%clk 0:02:24]} 10. axb4 {[%clk 0:02:18]}  axb4 {[%clk 0:02:24]} 11. Bb5+ {[%clk 0:02:11]}  Nd7 {[%clk 0:02:22]} 12. Rxa8 {[%clk 0:01:53]}  Qxa8 {[%clk 0:02:18]} 13. Bxd7+ {[%clk 0:01:52]}  Kxd7 {[%clk 0:02:17]} 14. Nc5+ {[%clk 0:01:53]}  Ke8 {[%clk 0:02:16]} 15. O-O {[%clk 0:01:51]}  Nf6 {[%clk 0:02:14]} 16. Qe2 {[%clk 0:01:51]}  e6 {[%clk 0:02:06]} 17. Qb5+ {[%clk 0:01:50]}  c6 {[%clk 0:02:05]} 18. Qxb4 {[%clk 0:01:49]}  Bxf3 {[%clk 0:02:01]} 19. gxf3 {[%clk 0:01:48]}  Nd5 {[%clk 0:02:02]} 20. Qc4 {[%clk 0:01:46]}  Bxc5 {[%clk 0:02:01]} 21. Qxc5 {[%clk 0:01:45]}  f5 {[%clk 0:01:57]} 22. e4 {[%clk 0:01:45]}  Ne7 {[%clk 0:01:40]} 23. Bg5 {[%clk 0:01:26]}  Qb7 {[%clk 0:01:37]} 24. Ra1 {[%clk 0:01:24]}  Nc8 {[%clk 0:01:29]} 25. e5 {[%clk 0:01:01]}  Kf7 {[%clk 0:01:20]} 26. Qxc3 {[%clk 0:00:56]}  Re8 {[%clk 0:01:15]} 27. Rc1 {[%clk 0:00:52]}  h6 {[%clk 0:01:11]} 28. Bf6 {[%clk 0:00:51]}  Nb6 {[%clk 0:01:05]} 29. Qxc6 {[%clk 0:00:44]}  Qxc6 {[%clk 0:01:04]} 30. Rxc6 {[%clk 0:00:44]}  Nd5 {[%clk 0:01:05]} 31. Ra6 {[%clk 0:00:29]}  Rc8 {[%clk 0:01:03]} 32. Ra7+ {[%clk 0:00:28]}  Kg8 {[%clk 0:01:01]} 33. h4 {[%clk 0:00:21]}  h5 {[%clk 0:00:57]} 34. Rg7+ {[%clk 0:00:19]}  Kf8 {[%clk 0:00:58]} 35. Rxg6 {[%clk 0:00:19]}  Rc1+ {[%clk 0:00:58]} 36. Kh2 {[%clk 0:00:18]}  Rf1 {[%clk 0:00:54]} 37. Rh6 {[%clk 0:00:15]}  Rxf2+ {[%clk 0:00:53]} 38. Kg3 {[%clk 0:00:16]}  Rb2 {[%clk 0:00:52]} 39. Rxh5 {[%clk 0:00:16]}  Rxb3 {[%clk 0:00:50]} 40. Rh7 {[%clk 0:00:16]}  Rb1 {[%clk 0:00:43]} 41. h5 {[%clk 0:00:15]}  Rg1+ {[%clk 0:00:43]} 42. Kf2 {[%clk 0:00:14]}  Rh1 {[%clk 0:00:36]} 43. Kg2 {[%clk 0:00:14]}  Rd1 {[%clk 0:00:34]} 44. h6 {[%clk 0:00:14]}  Rd2+ {[%clk 0:00:28]} 45. Kg3 {[%clk 0:00:12]}  f4+ {[%clk 0:00:28]} 46. Kh3 {[%clk 0:00:12]}  Rf2 {[%clk 0:00:26]} 47. Ra7 {[%clk 0:00:07]}  Rxf3+ {[%clk 0:00:25]} 48. Kh2 {[%clk 0:00:06]}  Ne3 {[%clk 0:00:20]} 49. h7 {[%clk 0:00:05]}  Ng4+ {[%clk 0:00:20]} 50. Kg2 {[%clk 0:00:05]}  Rg3+ {[%clk 0:00:16]} 51. Kf1 {[%clk 0:00:04]}  Rh3 {[%clk 0:00:09]} 52. h8=Q+ {[%clk 0:00:04]}  Rxh8 {[%clk 0:00:09]} 53. Bxh8 {[%clk 0:00:04]}  f3 {[%clk 0:00:07]} 54. Bf6 {[%clk 0:00:04]}  Kg8 {[%clk 0:00:04]} 55. Bh4 {[%clk 0:00:04]}  Ne3+ {[%clk 0:00:03]} 56. Kf2 {[%clk 0:00:04]}  Nf5 {[%clk 0:00:04]} 57. Bf6 {[%clk 0:00:03]}  Nxd4 {[%clk 0:00:03]} 58. Rd7 {[%clk 0:00:03]}  Nf5 {[%clk 0:00:03]} 59. Kxf3 {[%clk 0:00:04]}  Kf8 {[%clk 0:00:04]} 60. Kf4 {[%clk 0:00:04]}  Ke8 {[%clk 0:00:03]} 61. Ra7 {[%clk 0:00:03]}  Kf8 {[%clk 0:00:04]} 62. Kg5 {[%clk 0:00:03]}  Ke8 {[%clk 0:00:04]} 63. Bh8 {[%clk 0:00:04]}  Ne3 {[%clk 0:00:04]} 64. Kf6 {[%clk 0:00:04]}  Nd5+ {[%clk 0:00:05]} 65. Kxe6 {[%clk 0:00:05]}  Nf4+ {[%clk 0:00:05]} 66. Kf5 {[%clk 0:00:04]}  Nd5 {[%clk 0:00:05]} 67. e6 {[%clk 0:00:04]}  Ne3+ {[%clk 0:00:04]} 68. Ke5 {[%clk 0:00:05]}  Nc4+ {[%clk 0:00:04]} 69. Kf6 {[%clk 0:00:05]}  Nb6 {[%clk 0:00:04]} 70. Rb7 {[%clk 0:00:05]}  Nd5+ {[%clk 0:00:04]} 71. Ke5 {[%clk 0:00:05]}  Ne3 {[%clk 0:00:04]} 72. Bf6 {[%clk 0:00:06]}  Ng4+ {[%clk 0:00:03]} 73. Kf5 {[%clk 0:00:06]}  Ne3+ {[%clk 0:00:04]} 74. Kg6 {[%clk 0:00:06]}  Nd5 {[%clk 0:00:04]} 75. Rb8# {[%clk 0:00:06]} 1-0


[Site "https://www.chess.com"]

[Event "Titled Tuesday Blitz September 28 2021"]
[White "Timmermans, Mark"]
[Black "Hjartarson, Johann"]
[WhiteFideId "1026399"]
[BlackFideId "2300044"]
[WhiteElo "2460"]
[BlackElo "2502"]
[Result "1-0"]
[Round "10"]
[TimeControl "180+1"]
[Date "2021.09.28"]
[WhiteClock "0:00:44"]
[BlackClock "0:00:55"]

1. b4 {[%clk 0:03:00]}  Nf6 {[%clk 0:02:58]} 2. Bb2 {[%clk 0:03:01]}  e6 {[%clk 0:02:58]} 3. b5 {[%clk 0:03:00]}  d5 {[%clk 0:02:57]} 4. a4 {[%clk 0:03:01]}  Bd6 {[%clk 0:02:57]} 5. e3 {[%clk 0:03:02]}  O-O {[%clk 0:02:56]} 6. c4 {[%clk 0:03:02]}  a6 {[%clk 0:02:55]} 7. Nf3 {[%clk 0:03:02]}  dxc4 {[%clk 0:02:50]} 8. Bxc4 {[%clk 0:03:02]}  axb5 {[%clk 0:02:49]} 9. axb5 {[%clk 0:03:03]}  Rxa1 {[%clk 0:02:48]} 10. Bxa1 {[%clk 0:03:04]}  Nbd7 {[%clk 0:02:47]} 11. O-O {[%clk 0:03:04]}  e5 {[%clk 0:02:46]} 12. d4 {[%clk 0:03:02]}  e4 {[%clk 0:02:43]} 13. Nfd2 {[%clk 0:03:01]}  Nb6 {[%clk 0:02:40]} 14. Be2 {[%clk 0:03:02]}  Qe7 {[%clk 0:02:31]} 15. Nc3 {[%clk 0:02:54]}  Bd7 {[%clk 0:02:27]} 16. Re1 {[%clk 0:02:54]}  Re8 {[%clk 0:02:25]} 17. Nf1 {[%clk 0:02:51]}  g6 {[%clk 0:02:21]} 18. Bb2 {[%clk 0:02:48]}  h5 {[%clk 0:02:20]} 19. Qc2 {[%clk 0:02:44]}  h4 {[%clk 0:02:12]} 20. f4 {[%clk 0:02:29]}  exf3 {[%clk 0:02:00]} 21. Bxf3 {[%clk 0:02:29]}  c6 {[%clk 0:01:58]} 22. bxc6 {[%clk 0:02:28]}  bxc6 {[%clk 0:01:48]} 23. e4 {[%clk 0:02:28]}  c5 {[%clk 0:01:46]} 24. d5 {[%clk 0:01:57]}  Nc4 {[%clk 0:01:45]} 25. Ba1 {[%clk 0:01:57]}  Ne5 {[%clk 0:01:42]} 26. Bd1 {[%clk 0:01:33]}  c4 {[%clk 0:01:40]} 27. h3 {[%clk 0:01:27]}  Nd3 {[%clk 0:01:34]} 28. Re2 {[%clk 0:01:12]}  Nh5 {[%clk 0:01:33]} 29. Na4 {[%clk 0:00:54]}  Nhf4 {[%clk 0:01:22]} 30. Re3 {[%clk 0:00:54]}  Ra8 {[%clk 0:01:18]} 31. Qxc4 {[%clk 0:00:48]}  Qg5 {[%clk 0:01:05]} 32. Bg4 {[%clk 0:00:45]}  Rxa4 {[%clk 0:01:01]} 33. Qc3 {[%clk 0:00:46]}  Bc5 {[%clk 0:00:55]} 34. Qg7# {[%clk 0:00:44]} 1-0


[Site "https://www.chess.com"]

[Event "Titled Tuesday Blitz September 28 2021"]
[White "Tristan, Leonardo"]
[Black "Sadovsky, Artem"]
[WhiteFideId "113816"]
[BlackFideId "4155840"]
[WhiteElo "2404"]
[BlackElo "2414"]
[Result "1-0"]
[Round "10"]
[TimeControl "180+1"]
[Date "2021.09.28"]
[WhiteClock "0:00:50"]
[BlackClock "0:00:42"]

1. d4 {[%clk 0:03:00]}  g6 {[%clk 0:02:59]} 2. Nf3 {[%clk 0:02:55]}  Bg7 {[%clk 0:02:59]} 3. Bf4 {[%clk 0:02:55]}  d6 {[%clk 0:02:59]} 4. e3 {[%clk 0:02:56]}  c5 {[%clk 0:02:59]} 5. c3 {[%clk 0:02:56]}  Nd7 {[%clk 0:02:59]} 6. h3 {[%clk 0:02:56]}  Ngf6 {[%clk 0:02:58]} 7. Be2 {[%clk 0:02:56]}  O-O {[%clk 0:02:59]} 8. O-O {[%clk 0:02:56]}  b6 {[%clk 0:03:00]} 9. Bh2 {[%clk 0:02:56]}  Bb7 {[%clk 0:03:00]} 10. Nbd2 {[%clk 0:02:57]}  Qc7 {[%clk 0:03:01]} 11. a4 {[%clk 0:02:57]}  a6 {[%clk 0:03:02]} 12. Qb3 {[%clk 0:02:56]}  Rad8 {[%clk 0:03:00]} 13. Rfd1 {[%clk 0:02:51]}  Qb8 {[%clk 0:03:00]} 14. c4 {[%clk 0:02:39]}  cxd4 {[%clk 0:02:54]} 15. exd4 {[%clk 0:02:39]}  e5 {[%clk 0:02:51]} 16. dxe5 {[%clk 0:02:29]}  dxe5 {[%clk 0:02:52]} 17. a5 {[%clk 0:02:28]}  Nc5 {[%clk 0:02:30]} 18. Qxb6 {[%clk 0:02:18]}  Nfd7 {[%clk 0:02:30]} 19. Qb4 {[%clk 0:02:18]}  Bxf3 {[%clk 0:02:30]} 20. Qxb8 {[%clk 0:02:15]}  Rxb8 {[%clk 0:02:31]} 21. Bxf3 {[%clk 0:02:04]}  Rxb2 {[%clk 0:02:31]} 22. Bc6 {[%clk 0:01:14]}  Rc8 {[%clk 0:01:48]} 23. Bd5 {[%clk 0:01:14]}  Rxd2 {[%clk 0:01:11]} 24. Rxd2 {[%clk 0:01:13]}  Nb3 {[%clk 0:01:12]} 25. Bxf7+ {[%clk 0:01:06]}  Kf8 {[%clk 0:01:09]} 26. Rxd7 {[%clk 0:01:05]}  Nxa1 {[%clk 0:01:10]} 27. Bd5 {[%clk 0:01:02]}  Bh6 {[%clk 0:00:55]} 28. Rxh7 {[%clk 0:01:00]}  Bg7 {[%clk 0:00:56]} 29. Rxg7 {[%clk 0:00:50]}  Kxg7 {[%clk 0:00:56]} 30. Bxe5+ {[%clk 0:00:51]}  Kh7 {[%clk 0:00:53]} 31. Bxa1 {[%clk 0:00:51]}  Rb8 {[%clk 0:00:54]} 32. Bd4 {[%clk 0:00:51]}  Rb1+ {[%clk 0:00:53]} 33. Kh2 {[%clk 0:00:51]}  Rd1 {[%clk 0:00:54]} 34. Bb6 {[%clk 0:00:51]}  Rd2 {[%clk 0:00:53]} 35. Bb7 {[%clk 0:00:50]}  Rd6 {[%clk 0:00:41]} 36. c5 {[%clk 0:00:50]}  Rxb6 {[%clk 0:00:42]} 1-0


[Site "https://www.chess.com"]

[Event "Titled Tuesday Blitz September 28 2021"]
[White "Urazayev, Arystanbek"]
[Black "Vlachos, Anatole"]
[WhiteFideId "13709810"]
[BlackFideId "26093189"]
[WhiteElo "2321"]
[BlackElo "2350"]
[Result "1/2-1/2"]
[Round "10"]
[TimeControl "180+1"]
[Date "2021.09.28"]
[WhiteClock "0:00:40"]
[BlackClock "0:00:02"]

1. e4 {[%clk 0:03:00]}  e5 {[%clk 0:02:58]} 2. Nf3 {[%clk 0:03:00]}  Nc6 {[%clk 0:02:57]} 3. Bb5 {[%clk 0:03:00]}  Nf6 {[%clk 0:02:57]} 4. d3 {[%clk 0:02:57]}  d6 {[%clk 0:02:56]} 5. O-O {[%clk 0:02:55]}  g6 {[%clk 0:02:56]} 6. c3 {[%clk 0:02:55]}  Bg7 {[%clk 0:02:55]} 7. Re1 {[%clk 0:02:55]}  O-O {[%clk 0:02:55]} 8. Nbd2 {[%clk 0:02:56]}  Kh8 {[%clk 0:02:55]} 9. Nf1 {[%clk 0:02:57]}  Nh5 {[%clk 0:02:55]} 10. Ng3 {[%clk 0:02:56]}  Nf4 {[%clk 0:02:55]} 11. d4 {[%clk 0:02:56]}  Qe7 {[%clk 0:02:52]} 12. a4 {[%clk 0:02:45]}  Bd7 {[%clk 0:02:45]} 13. Bxf4 {[%clk 0:02:35]}  exf4 {[%clk 0:02:44]} 14. Nf1 {[%clk 0:02:35]}  Rae8 {[%clk 0:02:35]} 15. e5 {[%clk 0:02:25]}  dxe5 {[%clk 0:02:25]} 16. Bxc6 {[%clk 0:02:26]}  Bxc6 {[%clk 0:02:23]} 17. Nxe5 {[%clk 0:02:27]}  Qd6 {[%clk 0:02:20]} 18. Nxc6 {[%clk 0:02:23]}  Qxc6 {[%clk 0:02:21]} 19. Qb3 {[%clk 0:02:13]}  f3 {[%clk 0:02:17]} 20. g3 {[%clk 0:02:13]}  Re2 {[%clk 0:02:00]} 21. Rxe2 {[%clk 0:02:08]}  fxe2 {[%clk 0:02:01]} 22. Ne3 {[%clk 0:02:09]}  Bh6 {[%clk 0:01:55]} 23. Ng2 {[%clk 0:01:26]}  Kg7 {[%clk 0:01:35]} 24. f4 {[%clk 0:01:25]}  Re8 {[%clk 0:01:21]} 25. Re1 {[%clk 0:01:24]}  Qf3 {[%clk 0:01:11]} 26. Qc4 {[%clk 0:01:06]}  Re7 {[%clk 0:00:54]} 27. Nh4 {[%clk 0:01:06]}  Qe3+ {[%clk 0:00:53]} 28. Kg2 {[%clk 0:01:07]}  Bxf4 {[%clk 0:00:40]} 29. gxf4 {[%clk 0:01:06]}  Qxf4 {[%clk 0:00:41]} 30. Nf3 {[%clk 0:01:07]}  Re3 {[%clk 0:00:41]} 31. Ng1 {[%clk 0:00:43]}  Qe4+ {[%clk 0:00:16]} 32. Kf2 {[%clk 0:00:41]}  Qf4+ {[%clk 0:00:13]} 33. Kg2 {[%clk 0:00:42]}  Qg4+ {[%clk 0:00:06]} 34. Kf2 {[%clk 0:00:40]}  Qf4+ {[%clk 0:00:02]} 35. Kg2 {[%clk 0:00:40]} 1/2-1/2


[Site "https://www.chess.com"]